Cogmind - Beta 13 @@@ ROGUE MODE // 2024.04.23 @ 00:01:55 Player: CONM Result: Destroyed by G-47 Trooper with Particle Gun Performance ------------- Evolutions (2) 1000 Regions Visited (5) 1000 Robots Destroyed (35) 175 Value Destroyed (1253) 1253 Prototype IDs (0) 0 Alien Tech Used (0) 0 Bonus (116) 116 TOTAL SCORE: 3544 Bonus ------- Follower Combat Kills 116 Cogmind --------- Core Integrity 0/550 Matter 283/300 Energy 100/100 System Corruption 0% Temperature Cool (18) Movement Core (350) Ox6 Location -8/Storage Parts ------- > --- POWER (1) -------- (None) > --- PROPULSION (4) --- (None) > --- UTILITY (4) ------ Large Storage Unit Visual Processing Unit Targeting Computer > --- WEAPON (2) ------- (None) > --- INVENTORY (15) --- Light Ion Engine Small Storage Unit Visual Processing Unit Light Armor Plating Light Armor Plating Beam Rifle Assault Rifle Peak State ------------ > --- POWER ------------ Improved Ion Engine > --- PROPULSION ------- Wheel Wheel Wheel Wheel > --- UTILITY ---------- Improved Cooling System Large Storage Unit Visual Processing Unit Light Armor Plating > --- WEAPON ----------- Heavy Laser Beam Cannon > --- INVENTORY -------- Light Ion Engine Light Treads Improved Treads Small Storage Unit Visual Processing Unit Targeting Computer Light Armor Plating Light Armor Plating Light Armor Plating Light EM Pulse Cannon Light EM Pulse Cannon Particle Cannon Assault Rifle Heavy Assault Rifle [Rating: 21] Favorites ----------- Power Improved Ion Engine Engine Improved Ion Engine Power Core Light Nuclear Core Propulsion Light Treads Treads Light Treads Leg Aluminum Leg Wheel Wheel Utility Large Storage Unit Device Improved Cooling System Storage Large Storage Unit Processor Visual Processing Unit Protection Light Armor Plating Weapon Assault Rifle Energy Gun Heavy Laser Energy Cannon Beam Cannon Ballistic Gun Assault Rifle Launcher Grenade Launcher Slashing Weapon Mining Claw Build | -11 -10 -10 -9 -8 -8 ------- Run | Yrd Mat Min Mat Mat Sto Slots Evolved 4 | . . . 2 2 . Power . | . . . . . . Propulsion 2 | . . . 1 1 . Utility 2 | . . . 1 1 . Weapon . | . . . . . . Parts Attached 49 | 3 6 13 8 2 17 Power 7 | 1 2 2 . . 2 Engine 6 | 1 2 2 . . 1 Core 1 | . . . . . 1 Reactor . | . . . . . . Propulsion 21 | 2 . 7 4 1 7 Treads 12 | 2 . 3 . . 7 Leg 3 | . . 3 . . . Wheel 6 | . . 1 4 1 . Hover . | . . . . . . Flight . | . . . . . . Utility 8 | . 2 . 2 1 3 Device 1 | . . . . . 1 Storage 2 | . 2 . . . . Processor 2 | . . . 1 . 1 Hackware . | . . . . . . Protection 3 | . . . 1 1 1 Artifact . | . . . . . . Weapon 13 | . 2 4 2 . 5 Energy Gun 1 | . . . . . 1 Energy Cannon 4 | . . . 1 . 3 Ballistic Gun 6 | . 1 4 . . 1 Ballistic Cannon . | . . . . . . Launcher 1 | . 1 . . . . Special Weapon . | . . . . . . Impact Weapon . | . . . . . . Slashing Weapon 1 | . . . 1 . . Piercing Weapon . | . . . . . . Special Melee Weapon . | . . . . . . Unidentified Prototypes . | . . . . . . Parts Lost 26 | . . 8 . . 18 Power 4 | . . 2 . . 2 Propulsion 13 | . . 5 . . 8 Utility 3 | . . . . . 3 Weapon 6 | . . 1 . . 5 Highest Loss Streak 11 | . . 6 . . 11 To Critical Strikes . | . . . . . . Average Slot Usage (%) 93 | . 92 93 100 90 89 Engine 12 | . 14 13 11 9 7 Treads 22 | . 28 24 . . 24 Wheel 5 | . . . 33 32 4 Device 1 | . . . . . 7 Storage 21 | . 24 28 14 9 9 Processor 3 | . . . 11 9 15 Protection 1 | . . . 7 12 2 Energy Cannon 2 | . . . 2 9 14 Ballistic Gun 15 | . 12 24 12 9 2 Launcher 3 | . 12 . . . . Naked Turns . | . . . . . . Heaviest Build 39 | 3 36 37 35 38 39 Greatest Support 83 | 40 40 40 30 40 83 Greatest Overweight (x) 3 | . . 3 1 1 1 Average Overweight (x) . | . . . 1 . . Largest Inventory Capacity 15 | 5 15 15 15 15 15 Average Capacity 14 | 5 13 15 15 15 15 Most Carried 15 | 5 14 14 15 15 14 Average Carried 9 | 2 6 9 14 14 12 Final Capacity 15 | 5 15 15 15 15 15 Final Carried 15 | 2 14 13 15 14 7 Class Distribution -------------------- 95% | Mutant 4% | Scavenger-Mutant Dominant Class ---------------- Mutant | -10/Materials Mutant | -10/Mines Mutant | -9/Materials Scavenger-Mutant | -8/Materials Mutant | -8/Storage Resources | -11 -10 -10 -9 -8 -8 ----------- Run | Yrd Mat Min Mat Mat Sto Matter Collected 1000 | 184 240 388 47 26 115 Remotely . | . . . . . . Salvage Created 1235 | . 339 98 100 55 643 Parts 74 | . 27 7 7 1 32 Haulers Intercepted . | . . . . . . Recyclers Shooed 1 | . . 1 . . . Parts Field Recycled . | . . . . . . Retrieved Matter . | . . . . . . Parts Self-Destructed . | . . . . . . Prevented . | . . . . . . Kills | -11 -10 -10 -9 -8 -8 ------- Run | Yrd Mat Min Mat Mat Sto Combat Hostiles Destroyed 31 | . 12 4 2 1 12 Melee 2 | . . 1 1 . . Guns 6 | . . 3 1 . 2 Cannons 10 | . . . . . 10 AOE 12 | . 12 . . . . Classes Destroyed 8 | . 4 3 1 . . Worker 2 | . 1 1 . . . Watcher 3 | . 3 . . . . Swarmer 3 | . 3 . . . . Grunt 15 | . 9 . . . 6 Brawler 1 | . . . 1 . . Sentry 10 | . . 2 1 1 6 Demolisher 1 | . . 1 . . . Assembled 1 | . . 1 . . . Best Kill Streak 4 | . 4 2 1 1 3 Combat Bots Only 3 | . 3 2 1 1 3 Max Kills in Single Turn 2 | . 2 1 1 1 1 Gunslinging . | . . . . . . Exploded 2 | . 2 . . . . Melee 1 | . . 1 1 . . Uniques/NPCs Destroyed . | . . . . . . Combat | -11 -10 -10 -9 -8 -8 -------- Run | Yrd Mat Min Mat Mat Sto Hostile Shots Fired 303 | . 22 49 12 4 216 Missed 73 | . 6 7 5 1 54 Damage Taken 3967 | . 230 1015 153 46 2523 Core 780 | . 32 128 65 . 555 Absorbed by Shields . | . . . . . . Regen/Repaired (Parts) 17 | . 17 . . . . Core Remaining (%) 73 | 100 . 36 83 . . Volleys Fired 90 | . 21 12 6 2 49 Largest 2 | . 2 1 2 2 2 Hottest 129 | . 50 23 80 80 129 Shots Fired 144 | . 26 12 10 4 92 Gun 43 | . 9 12 6 2 14 Cannon 84 | . . . 4 2 78 Launcher 17 | . 17 . . . . Special . | . . . . . . Kinetic 37 | . 9 12 6 2 8 Thermal 90 | . . . 4 2 84 Explosive 17 | . 17 . . . . Electromagnetic . | . . . . . . Robot Hit Streak 16 | . 4 15 4 2 16 Robot Miss Streak 5 | . 2 1 1 2 5 Penetration Max . | . . . . . . Secondary Targets . | . . . . . . Shots Hit Robots 96 | . 12 12 8 2 62 Core Hits 67 | . 28 6 4 1 28 Critical Kills 1 | . . . . 1 . Critical Parts Destroyed . | . . . . . . Critical Strikes 1 | . . . . 1 . Meltdown 1 | . . . . 1 . Melee Attacks 3 | . . . 3 . . Impact . | . . . . . . Slashing 3 | . . . 3 . . Piercing . | . . . . . . Sneak Attacks . | . . . . . . Combat Hostiles . | . . . . . . Follow-up Attacks . | . . . . . . Damage Inflicted 2565 | . 930 258 126 31 1220 Guns 446 | . 48 232 56 14 96 Cannons 1169 | . . . 34 17 1118 Explosions 882 | . 882 . . . . Melee 36 | . . . 36 . . Ramming 32 | . . 26 . . 6 Kinetic 409 | . 48 232 56 14 59 Thermal 1206 | . . . 34 17 1155 Explosive 882 | . 882 . . . . Electromagnetic . | . . . . . . Impact . | . . . . . . Slashing 36 | . . . 36 . . Piercing . | . . . . . . Highest Corruption 2 | . . . 2 . . Average Corruption 2 | . . . 2 . . Corruption Purged . | . . . . . . Corruption Blocked . | . . . . . . Effects 2 | . . . 2 . . Matter Fused 1 | . . . 1 . . Data Loss (major) 1 | . . . 1 . . Overload Shots . | . . . . . . Overflow Damage 13 | . 10 . . . 3 Projectiles 3 | . . . . . 3 Explosions 10 | . 10 . . . . Melee . | . . . . . . Knockbacks . | . . . . . . Impact . | . . . . . . Kinetic . | . . . . . . Secondary . | . . . . . . Self-Inflicted Damage 51 | . 51 . . . . Shots 2 | . 2 . . . . Rammed 5 | . . 3 . . 2 Targets Rammed 8 | . . 6 . . 2 Kicked 1 | . . 1 . . . Crushed 2 | . . 2 . . . Highest Temperature 84 | . 5 10 84 51 33 Average Temperature 19 | . 2 5 43 30 12 Received Heat Transfer 1472 | . 75 119 18 18 1242 Siege Activations . | . . . . . . Robots Corrupted . | . . . . . . Combat Hostiles . | . . . . . . Parts Fried . | . . . . . . Impact Corruptions . | . . . . . . Robots Melted 1 | . . . . 1 . Combat Hostiles 1 | . . . . 1 . Parts Melted 2 | . . . . 1 1 Heat Transferred 2368 | . . . 74 37 2257 Parts Sabotaged . | . . . . . . Parts Stolen . | . . . . . . Parts Stripped . | . . . . . . Power Chain Reactions . | . . . . . . Alert | -11 -10 -10 -9 -8 -8 ------- Run | Yrd Mat Min Mat Mat Sto Peak Influence 296 | . 266 108 154 96 296 Initial 73 | . . 73 1 65 40 Average 71 | . 112 20 57 66 150 Maximum Alert Level 1 | . 1 . . . 1 Low Security (%) 90 | 100 86 100 100 100 65 Level 1 9 | . 13 . . . 34 Level 2 . | . . . . . . Level 3 . | . . . . . . Level 4 . | . . . . . . Level 5 . | . . . . . . High Security . | . . . . . . Max Security . | . . . . . . Squads Dispatched 3 | . 1 . . . 2 Investigation 1 | . . . . . 1 Extermination . | . . . . . . Reinforcement 2 | . 1 . . . 1 Assault . | . . . . . . Garrison . | . . . . . . Intercept . | . . . . . . Searches Triggered . | . . . . . . Construction Impeded . | . . . . . . Haulers Reinforced . | . . . . . . Active Scanning Responses . | . . . . . . Cargo Convoy Interrupts . | . . . . . . Stealth | -11 -10 -10 -9 -8 -8 --------- Run | Yrd Mat Min Mat Mat Sto Distress Signals 4 | . 3 . . . 1 Communications Jammed . | . . . . . . Distress Signals . | . . . . . . Times Spotted 63 | . 18 8 7 1 29 Peak Tracking Total 10 | . 4 2 3 1 10 Tactical Retreats 1 | . . 1 . . . Traps | -11 -10 -10 -9 -8 -8 ------- Run | Yrd Mat Min Mat Mat Sto Traps Triggered 1 | . . . 1 . . Indirectly . | . . . . . . Trap Hack Attempts . | . . . . . . Triggered . | . . . . . . Disarmed . | . . . . . . Reprogrammed . | . . . . . . Reused . | . . . . . . Traps Extracted . | . . . . . . Installed . | . . . . . . Triggered . | . . . . . . Machines | -11 -10 -10 -9 -8 -8 ---------- Run | Yrd Mat Min Mat Mat Sto Machines Disabled 2 | . 2 . . . . Max in Single Turn 1 | . 1 . . . . Machines Repaired . | . . . . . . Machines Dismantled . | . . . . . . Machines Sabotaged . | . . . . . . Overloaded Fab Kills . | . . . . . . Hacking | -11 -10 -10 -9 -8 -8 --------- Run | Yrd Mat Min Mat Mat Sto Machines Accessed 2 | . 1 . . . 1 Terminals 1 | . . . . . 1 Fabricators . | . . . . . . Repair Stations 1 | . 1 . . . . Recycling Units . | . . . . . . Scanalyzers . | . . . . . . Garrison Access . | . . . . . . Total Hacks 6 | . 3 . . . 3 Successful 4 | . 2 . . . 2 Failed 1 | . 1 . . . . Catastrophic 1 | . 1 . . . . Database Lockouts 1 | . . . . . 1 Manual . | . . . . . . Terminals 3 | . . . . . 3 Fabricators . | . . . . . . Repair Stations 3 | . 3 . . . . Recycling Units . | . . . . . . Scanalyzers . | . . . . . . Garrison Access . | . . . . . . Terminal Hacks 2 | . . . . . 2 Record 2 | . . . . . 2 Fabricator Hacks . | . . . . . . Repair Station Hacks 2 | . 2 . . . . Scan Component 1 | . 1 . . . . Repair 1 | . 1 . . . . Recycling Unit Hacks . | . . . . . . Scanalyzer . | . . . . . . Garrison Access Hacks . | . . . . . . Unauthorized Hacks . | . . . . . . Terminals . | . . . . . . Fabricators . | . . . . . . Repair Stations . | . . . . . . Recycling Units . | . . . . . . Scanalyzers . | . . . . . . Garrison Access . | . . . . . . Data Cores Recovered . | . . . . . . Used . | . . . . . . Hacking Detections 2 | . 1 . . . 1 Full Trace Events 2 | . 1 . . . 1 Feedback Events . | . . . . . . Feedback Blocked . | . . . . . . Robot Schematics Acquired . | . . . . . . Robots Built . | . . . . . . Authchips . | . . . . . . Time . | . . . . . . Total Robot Build Rating . | . . . . . . Part Schematics Acquired . | . . . . . . Parts Built . | . . . . . . Authchips . | . . . . . . Time . | . . . . . . Total Part Build Rating . | . . . . . . Parts Repaired 1 | . 1 . . . . Time 26 | . 26 . . . . Parts Recycled . | . . . . . . Recycled Matter . | . . . . . . Retrieved Matter . | . . . . . . Retrieved Components . | . . . . . . Parts Scanalyzed . | . . . . . . Part Schematics Acquired . | . . . . . . Parts Damaged . | . . . . . . Bothacking | -11 -10 -10 -9 -8 -8 ------------ Run | Yrd Mat Min Mat Mat Sto Used RIF Installer . | . . . . . . Robots Hacked . | . . . . . . Non-combat . | . . . . . . Combat . | . . . . . . Robot Hacks Applied . | . . . . . . Relay Couplers Released . | . . . . . . Fabnet Peak Effective % . | . . . . . . Robots Rewired . | . . . . . . Allies Hacked . | . . . . . . Hacks Repelled . | . . . . . . Allies | -11 -10 -10 -9 -8 -8 -------- Run | Yrd Mat Min Mat Mat Sto Total Allies 3 | . . 3 . . . Largest Group 3 | . . 3 3 1 1 Highest-Rated Group 40 | . . 40 40 8 8 Highest-Rated Ally 16 | . . 16 16 8 8 Total Orders . | . . . . . . Ally Attacks 43 | . . 5 34 . 4 Total Damage 392 | . . 43 319 . 30 Kills 5 | . . 1 4 . . Allies Corrupted . | . . . . . . Allies Melted . | . . . . . . Intel | -11 -10 -10 -9 -8 -8 ------- Run | Yrd Mat Min Mat Mat Sto Robot Analysis Total . | . . . . . . Derelict Logs Recovered 2 | . . 2 . . . Drone Launches . | . . . . . . Drone Recoveries . | . . . . . . Exploration | -11 -10 -10 -9 -8 -8 ------------- Run | Yrd Mat Min Mat Mat Sto Turns Passed 3614 | 58 981 1523 395 50 607 Spaces Moved 2187 | 47 567 875 370 47 281 Core 22 | 22 . . . . . Treads 1625 | 25 567 818 . . 215 Legs 39 | . . 39 . . . Wheels 501 | . . 18 370 47 66 Hover . | . . . . . . Flight . | . . . . . . Fastest Speed 50 | 50 160 110 95 80 80 Average Speed 146 | 108 160 165 95 84 147 Slowest Speed 330 | 160 160 330 95 95 240 Overloaded Moves . | . . . . . . Propulsion Burnouts . | . . . . . . Robots Hopped . | . . . . . . Cave-ins Triggered . | . . . . . . Exploration Rate (%) 40 | 4 80 78 36 6 40 Regions Visited 5 Branch Regions 2 Pre-discovered Areas . | . . . . . . Known Exits Taken 1 | . . . . 1 . Unknown Exits Taken 4 | 1 1 1 1 . . Scrap Searched . | . . . . . . Spaces Dug . | . . . . . . Terrain Destroyed 111 | . 111 . . . . Melee . | . . . . . . Projectile . | . . . . . . AOE 111 | . 111 . . . . Terrain Rammed . | . . . . . . Walls Destroyed . | . . . . . . Machines Disabled . | . . . . . . Actions | -11 -10 -10 -9 -8 -8 --------- Run | Yrd Mat Min Mat Mat Sto Total 2431 | 54 615 929 399 53 381 Wait 32 | . . 12 . . 20 Move 2182 | 46 566 874 369 46 281 Hop . | . . . . . . Pick Up 52 | 5 19 10 8 2 8 Fast Attach . | . . . . . . Attach 40 | 3 4 11 5 2 15 Detach 1 | . . . 1 . . Swap 9 | . 2 2 3 . 2 Drop 14 | . 3 2 4 1 4 Fire 90 | . 21 12 6 2 49 Melee 3 | . . . 3 . . Ram . | . . . . . . Kick 1 | . . 1 . . . Crush 7 | . . 5 . . 2 Escape Stasis . | . . . . . . Rewire . | . . . . . . Trap . | . . . . . . Miscellaneous . | . . . . . . Route ------- -11/Scrapyard -10/Materials (discovered 4 exits: [*Mat x3] / [*Min]) -10/Mines -9/Materials (discovered 2 exits: [*Mat] / *Min) -8/Materials -8/Storage History --------- Turn | Location | Event 5 | -11/Scrapyard | Discovered new exit (range 16) 59 | -11/Scrapyard | Entered Materials 315 | -10/Materials | Build established: Mutant 461 | -10/Materials | Discovered new exit (range 15) 722 | -10/Materials | Discovered new exit (range 13) 953 | -10/Materials | Discovered new exit (range 4) 998 | -10/Materials | Repaired Grenade Launcher? 1016 | -10/Materials | Discovered new exit (range 15) 1040 | -10/Materials | Entered Mines 1150 | -10/Mines | Assembled infested the area 1316 | -10/Mines | Lost 6 parts (1p4n1w) 1415 | -10/Mines | Core integrity fell below 50% 1443 | -10/Mines | Joined a pair of Derelicts in attacking an 0b10 outpost 1522 | -10/Mines | Assisted by bots powering up and referring to "LRC-V3" 1828 | -10/Mines | Learned location of 1 exit from Materials 1866 | -10/Mines | Discovered new exit (range 8) 2563 | -10/Mines | Entered Materials 2563 | -9/Materials | Accompanied by 3 allies 2563 | -9/Materials | Evolved 2 slots: Propulsion x1, Utility x1 2564 | -9/Materials | Identified exit to Mines 2928 | -9/Materials | Discovered new exit (range 17) 2958 | -9/Materials | Entered another Materials area 2958 | -8/Materials | Accompanied by 1 ally 2958 | -8/Materials | Evolved 2 slots: Propulsion x1, Utility x1 2959 | -8/Materials | Identified exit to Storage 2987 | -8/Materials | Met 7R-MNS 3008 | -8/Materials | Entered Storage 3008 | -8/Storage | Accompanied by 1 ally 3040 | -8/Storage | Central database locked down 3113 | -8/Storage | Lost 3 parts (2n1u) 3503 | -8/Storage | Lost 4 parts (3n1w) 3560 | -8/Storage | Core integrity fell below 50% 3612 | -8/Storage | Core integrity fell below 20% 3615 | -8/Storage | Destroyed by G-47 Trooper with Particle Gun Last Messages --------------- Imp. Cooling System destroyed. Critical hit (Burn: +37). Slammed into K-01 Serf. K-01 Serf cleans the Compression Vault. K-01 Serf destroyed. Hvy. Assault Rifle destroyed. Beam Cannon destroyed. Critical hit (Burn: +37). Lgt. Treads destroyed. Critical hit (Burn: +37). Lgt. EM Pulse Cannon destroyed. M-13 Machinist repairs Y-45 Defender. M-13 Machinist repairs G-50 Soldier. Slammed into U-05 Engineer. Lgt. EM Pulse Cannon destroyed. Critical hit (Burn: +37). Lgt. Armor Plating destroyed. Critical hit (Burn: +37). Lgt. Treads destroyed. Imp. Ion Engine destroyed. Map ----- +----------------------------------------------------+ | %! + #?""""??????????? | | # #?# #??????????? | | #+#########+#### # #?T #??????????? | | ????????# ######## #?# #??????????? | | ????????# # ## #?# #??????????? | | ????????# # """ ## #?# #??????????? | | ????????# # """ #######/##?# #??????????? | | ????????# """ # """ #?????# #?## ##?????????? | | ????????# """ # ####### ### #?????????? | | ????????# """ # """ +* #?????????? | | ????????# # """ # %! #?????????? | | ????????# """ # """ # ######## #?????????? | | ????????# """ # # %#?#######+#######?????? | | ????????# """ # #! ### """"" """"" #????? | | ????????# # #%=#"" """"" """"" #?????? | | ????????####### #*%#"T """"" """"" #?????? | | ??????????????####### #"" !% #?????? | | ????????????????????# ### = #?????? | | ????????????????????# #?# % #?????? | | ????????????????????# #################?????? | | ???????????????????## ## #??????????????? | | ???????????????????# # #??????????????? | | ???????????????????# # #??????????????? | | ???????????????????# + #??????????????? | | ???????????????????# # #??????????????? | | ???????????????????######@ #??????????????? | | ????????????????????????# m #??????????????? | | ????????????????????????#gYgg #??????????????? | | ????????????????????????#*gg Y#??????????????? | | ????????????????????????# !Y #??????????????? | | ????????????????????????# g #??????????????? | | ????????????????????????# #??????????????? | | ????????????????????????####u##??????????????? | | ???????????????????????????# #???????????????? | | ???????????????????????????#a#???????????????? | | ????????????????##+######### #???????????????? | | ????????????????# #???????????????? | | ????????????# #???????????????? | | ?????????? ##### #???????????????? | | ?????????? ==! ???????#+#???????????????? | | ???????????? =????????? ??????????????? | | ???????????????????????? """ ????????????? | | ???????????????????????# !! """ #???????????? | | ?????????????????????? / !! """ +???????????? | | ????????????????????? # ! #???????????? | | ??????????????????? ?# #???????????? | | ?????????????????? ??+ #???????????? | | ?????????????????# ???# #???????????? | | ?????????????????# ????### ######????????????? | | ?????????????????#???????##??????????????????? | +----------------------------------------------------+ Best States ------------- Heat Dissipation 58 Energy Generation 14 Energy Capacity 265 Matter Stores 500 Matter Capacity 500 Sight Range 18 Terrain Scan Density 10 Armor Coverage 300 Evasion (%) 50 Targeting Accuracy 5 Recoil Reduction 4 Item Schematics ----------------- None Robot Schematics ------------------ None Fabricated ------------ Nothing Alien Tech Used ----------------- None Achievements -------------- I Survived The Infestation Challenges ------------ None Game ------ Seed SpliceAerolevRecalibrator Manual? 0 Play Time 00:47:29 Cumulative 6.0 hours Start 2024.04.22 @ 03:26:34 End 2024.04.23 @ 00:01:55 Sessions 1 Manual Loads 0 Difficulty Rogue Special Mode None Game No. 15 Rogue 15 Adventurer 0 Explorer 0 Win Type - Total 0 Types 0/0/0/0/0/0/0/0/0 Lore% 4 Gallery% 8 Achievement% 7 Wizard Run 0 Options --------- Layout 1 ASCII 0 Keyboard 0 Movement Arrows Keybinds 0 Fullscreen 1 Font 24/Smallcaps Map View 50x40 Zoom Use 0% Tactical HUD 0 Map Filters NONE Filters NONE Steam 1 RUN: ecc55a69-2f38-4fa4-8e1f-b8a5a70c12df